[Event "15. Dobrovický rapid - Tereos TTD a.s. – open"]
[Site "Dobrovice, Czech Republic"]
[Date "2020.02.29"]
[Round "8.10"]
[White "Toman Jan"]
[Black "Janacek Jaroslav"]
[Result "1-0"]
[TimeControl "15m + 3s / tah"]
[WhiteElo "2088"]
[BlackElo "1979"]

1. Nf3 {[%clk 00:15:04]} {[%emt 00:00:02]} d6 {[%clk 00:15:04]} {[%emt
00:00:02]} 2. g3 {[%clk 00:15:03]} {[%emt 00:00:04]} e5 {[%clk 00:15:05]}
{[%emt 00:00:02]} 3. d3 {[%clk 00:15:02]} {[%emt 00:00:04]} f5 {[%clk
00:15:04]} {[%emt 00:00:04]} 4. Bg2 {[%clk 00:14:13]} {[%emt 00:00:53]} Nf6
{[%clk 00:15:04]} {[%emt 00:00:02]} 5. O-O {[%clk 00:14:04]} {[%emt 00:00:11]}
Be7 {[%clk 00:14:46]} {[%emt 00:00:20]} 6. c4 {[%clk 00:14:03]} {[%emt
00:00:05]} O-O {[%clk 00:14:41]} {[%emt 00:00:08]} 7. Nc3 {[%clk 00:14:02]}
{[%emt 00:00:03]} c6 {[%clk 00:14:43]} {[%emt 00:00:02]} 8. b4 {[%clk
00:13:55]} {[%emt 00:00:11]} Qe8 {[%clk 00:14:26]} {[%emt 00:00:20]} 9. b5
{[%clk 00:11:51]} {[%emt 00:02:06]} f4 {[%clk 00:14:07]} {[%emt 00:00:22]} 10.
bxc6 {[%clk 00:11:31]} {[%emt 00:00:23]} bxc6 {[%clk 00:13:54]} {[%emt
00:00:16]} 11. c5 {[%clk 00:11:13]} {[%emt 00:00:20]} Qh5 {[%clk 00:13:36]}
{[%emt 00:00:22]} 12. cxd6 {[%clk 00:10:47]} {[%emt 00:00:29]} Bxd6 {[%clk
00:12:43]} {[%emt 00:00:56]} 13. Ne4 {[%clk 00:10:22]} {[%emt 00:00:28]} Nxe4
{[%clk 00:12:20]} {[%emt 00:00:25]} 14. dxe4 {[%clk 00:10:23]} {[%emt
00:00:02]} Bc7 {[%clk 00:12:22]} {[%emt 00:00:01]} 15. Qc2 {[%clk 00:09:57]}
{[%emt 00:00:28]} Rf6 {[%clk 00:11:55]} {[%emt 00:00:31]} 16. Bb2 {[%emt
00:01:28]} Rh6 {[%clk 00:11:10]} {[%emt 00:00:01]} 17. Rfd1 {[%clk 00:07:05]}
{[%emt 00:02:17]} fxg3 {[%clk 00:09:51]} {[%emt 00:01:23]} 18. fxg3 {[%clk
00:06:36]} {[%emt 00:00:32]} Bb6+ {[%clk 00:09:34]} {[%emt 00:00:20]} 19. Kf1
{[%clk 00:06:21]} {[%emt 00:00:18]} Bg4 {[%clk 00:09:17]} {[%emt 00:00:20]} 20.
Qb3+ {[%clk 00:06:19]} {[%emt 00:00:05]} Be6 {[%clk 00:08:40]} {[%emt
00:00:39]} 21. Qc3 {[%clk 00:05:15]} {[%emt 00:01:07]} Nd7 {[%clk 00:08:20]}
{[%emt 00:00:23]} 22. Rd6 {[%clk 00:03:36]} {[%emt 00:01:43]} Rf8 {[%clk
00:08:09]} {[%emt 00:00:14]} 23. Ke1 {[%clk 00:03:35]} {[%emt 00:00:03]} Rxf3
{[%clk 00:05:39]} {[%emt 00:02:34]} 24. Qxf3 {[%clk 00:02:35]} {[%emt
00:01:04]} Qxh2 {[%clk 00:05:37]} {[%emt 00:00:05]} 25. Rxc6 {[%clk 00:02:27]}
{[%emt 00:00:11]} Rf6 {[%clk 00:05:32]} {[%emt 00:00:08]} 26. Rxe6 {[%clk
00:02:09]} {[%emt 00:00:21]} Rxf3 {[%clk 00:05:23]} {[%emt 00:00:12]} 27. Bxf3
{[%clk 00:02:03]} {[%emt 00:00:09]} Qxg3+ {[%clk 00:04:52]} {[%emt 00:00:34]}
28. Kd2 {[%clk 00:01:53]} {[%emt 00:00:12]} Qf4+ {[%clk 00:04:44]} {[%emt
00:00:12]} 29. Kc2 {[%clk 00:01:42]} {[%emt 00:00:14]} Kf7 {[%clk 00:04:31]}
{[%emt 00:00:16]} 30. Rc6 {[%clk 00:01:28]} {[%emt 00:00:16]} Nc5 {[%clk
00:04:28]} {[%emt 00:00:06]} 31. Rf1 {[%clk 00:01:12]} {[%emt 00:00:19]} Nxe4
{[%clk 00:04:21]} {[%emt 00:00:11]} 32. Bh5+ {[%clk 00:01:14]} g6 {[%clk
00:04:10]} {[%emt 00:00:14]} 33. Rxf4+ {[%clk 00:01:16]} exf4 {[%clk 00:04:12]}
34. Bf3 {[%clk 00:01:13]} {[%emt 00:00:07]} Nc5 {[%clk 00:03:40]} {[%emt
00:00:36]} 35. Bc1 {[%clk 00:01:08]} {[%emt 00:00:08]} g5 {[%clk 00:03:41]}
{[%emt 00:00:02]} 36. Bh5+ {[%clk 00:01:07]} {[%emt 00:00:04]} Ke7 {[%clk
00:03:37]} {[%emt 00:00:07]} 37. Rh6 {[%clk 00:01:05]} {[%emt 00:00:04]} Ne4
{[%clk 00:03:32]} {[%emt 00:00:09]} 38. Rxh7+ {[%clk 00:01:06]} {[%emt
00:00:02]} Kf6 {[%clk 00:03:34]} 39. Bb2+ {[%clk 00:01:02]} {[%emt 00:00:06]}
Ke6 {[%clk 00:03:21]} {[%emt 00:00:16]} 40. Bg4+ {[%clk 00:01:00]} {[%emt
00:00:05]} Kd6 {[%clk 00:03:22]} {[%emt 00:00:03]} 41. Rg7 {[%clk 00:00:55]}
{[%emt 00:00:06]} Be3 {[%clk 00:02:36]} {[%emt 00:00:51]} 42. Bf3 {[%clk
00:00:54]} {[%emt 00:00:04]} Nd2 {[%clk 00:01:23]} {[%emt 00:01:16]} 43. Rxg5
{[%clk 00:00:54]} {[%emt 00:00:03]} Nc4 {[%clk 00:01:18]} {[%emt 00:00:08]} 44.
Rg6+ {[%clk 00:00:55]} {[%emt 00:00:02]} Ke7 {[%clk 00:01:17]} {[%emt
00:00:05]} 45. Ra6 {[%clk 00:00:50]} {[%emt 00:00:06]} Bb6 {[%clk 00:01:12]}
{[%emt 00:00:10]} 46. Bc3 {[%clk 00:00:50]} {[%emt 00:00:02]} Ne3+ {[%clk
00:01:14]} {[%emt 00:00:03]} 47. Kd3 {[%clk 00:00:49]} {[%emt 00:00:02]} Nd1
{[%clk 00:01:08]} {[%emt 00:00:11]} 48. Bd4 {[%emt 00:00:25]} 1-0

[Event "15. Dobrovický rapid - Tereos TTD a.s. – open"]
[Site "Dobrovice, Czech Republic"]
[Date "2020.02.29"]
[Round "8.11"]
[White "Horak Otakar"]
[Black "Szeko Ludovit"]
[Result "0-1"]
[TimeControl "15m + 3s / tah"]
[WhiteElo "1938"]
[BlackElo "2051"]

1. d4 {[%clk 00:15:03]} {[%emt 00:00:02]} Nf6 {[%clk 00:15:05]} {[%emt
00:00:01]} 2. c4 {[%clk 00:15:06]} g6 {[%clk 00:15:07]} 3. g3 {[%clk 00:15:07]}
{[%emt 00:00:02]} Bg7 {[%clk 00:15:10]} 4. Nf3 {[%clk 00:15:09]} {[%emt
00:00:01]} O-O {[%clk 00:15:11]} {[%emt 00:00:02]} 5. Bg2 {[%clk 00:15:12]} d6
{[%clk 00:15:12]} {[%emt 00:00:02]} 6. Nc3 {[%clk 00:15:12]} {[%emt 00:00:02]}
a6 {[%clk 00:15:14]} 7. O-O {[%clk 00:15:09]} {[%emt 00:00:07]} Nbd7 {[%clk
00:15:16]} {[%emt 00:00:01]} 8. b3 {[%clk 00:14:13]} {[%emt 00:00:59]} Rb8
{[%clk 00:15:16]} {[%emt 00:00:02]} 9. Bb2 {[%clk 00:13:09]} {[%emt 00:01:07]}
b5 {[%clk 00:15:16]} {[%emt 00:00:03]} 10. cxb5 {[%clk 00:11:58]} {[%emt
00:01:15]} axb5 {[%clk 00:15:17]} {[%emt 00:00:02]} 11. Qc2 {[%clk 00:11:41]}
{[%emt 00:00:20]} c5 {[%clk 00:15:19]} {[%emt 00:00:01]} 12. Rfd1 {[%clk
00:11:18]} {[%emt 00:00:26]} Qb6 {[%clk 00:15:19]} {[%emt 00:00:03]} 13. e3
{[%clk 00:11:02]} {[%emt 00:00:19]} Bb7 {[%clk 00:15:18]} {[%emt 00:00:03]} 14.
dxc5 {[%clk 00:10:33]} {[%emt 00:00:32]} Qxc5 {[%clk 00:15:03]} {[%emt
00:00:18]} 15. Rac1 {[%clk 00:10:24]} {[%emt 00:00:13]} Rfc8 {[%clk 00:15:04]}
16. Qb1 {[%clk 00:10:11]} {[%emt 00:00:17]} Qh5 {[%clk 00:15:01]} {[%emt
00:00:06]} 17. Nd4 {[%clk 00:09:19]} {[%emt 00:00:54]} Bxg2 {[%clk 00:14:59]}
{[%emt 00:00:05]} 18. Kxg2 {[%clk 00:09:22]} Ne5 {[%clk 00:14:08]} {[%emt
00:00:54]} 19. Nce2 {[%clk 00:08:48]} {[%emt 00:00:36]} b4 {[%clk 00:11:45]}
{[%emt 00:02:26]} 20. h3 {[%clk 00:08:01]} {[%emt 00:00:51]} Bh6 {[%clk
00:11:41]} {[%emt 00:00:06]} 21. Nf4 {[%clk 00:07:28]} {[%emt 00:00:36]} Bxf4
{[%clk 00:11:16]} {[%emt 00:00:28]} 22. exf4 {[%clk 00:07:28]} {[%emt
00:00:02]} Ned7 {[%clk 00:11:04]} {[%emt 00:00:15]} 23. Nc6 {[%clk 00:07:14]}
{[%emt 00:00:17]} Rxc6 {[%clk 00:10:02]} {[%emt 00:01:05]} 24. Rxc6 {[%clk
00:07:14]} {[%emt 00:00:02]} Qb5 {[%clk 00:09:44]} {[%emt 00:00:22]} 25. Rc4
{[%clk 00:06:58]} {[%emt 00:00:19]} Qb7+ {[%clk 00:09:37]} {[%emt 00:00:11]} 26.
Kg1 {[%clk 00:06:56]} {[%emt 00:00:04]} Ra8 {[%clk 00:09:05]} {[%emt 00:00:37]}
27. Rdc1 {[%clk 00:05:51]} {[%emt 00:01:08]} Nd5 {[%clk 00:08:40]} {[%emt
00:00:27]} 28. Qc2 {[%clk 00:05:02]} {[%emt 00:00:51]} Nc5 {[%clk 00:08:36]}
{[%emt 00:00:07]} 29. Rxc5 {[%clk 00:04:17]} {[%emt 00:00:48]} dxc5 {[%clk
00:08:37]} {[%emt 00:00:02]} 30. Qxc5 {[%clk 00:04:18]} {[%emt 00:00:01]} f6
{[%clk 00:08:16]} {[%emt 00:00:24]} 31. Rd1 {[%clk 00:03:54]} {[%emt 00:00:27]}
Rd8 {[%clk 00:06:53]} {[%emt 00:01:26]} 32. Rd2 {[%clk 00:03:20]} {[%emt
00:00:38]} Rd7 {[%clk 00:06:49]} {[%emt 00:00:07]} 33. h4 {[%clk 00:03:06]}
{[%emt 00:00:17]} Kf7 {[%clk 00:06:49]} {[%emt 00:00:03]} 34. Qc4 {[%clk
00:02:41]} {[%emt 00:00:28]} e6 {[%clk 00:06:48]} {[%emt 00:00:03]} 35. Qe4
{[%clk 00:02:23]} {[%emt 00:00:21]} h5 {[%clk 00:06:18]} {[%emt 00:00:34]} 36.
Rd4 {[%clk 00:02:11]} {[%emt 00:00:15]} Rc7 {[%clk 00:06:11]} {[%emt 00:00:10]}
37. Rxb4 {[%clk 00:02:01]} {[%emt 00:00:13]} Qxb4 {[%clk 00:05:47]} {[%emt
00:00:28]} 0-1

[Event "15. Dobrovický rapid - Tereos TTD a.s. – open"]
[Site "Dobrovice, Czech Republic"]
[Date "2020.02.29"]
[Round "8.12"]
[White "Jerman Richard"]
[Black "Vranova Zdenka"]
[Result "0-1"]
[TimeControl "15m + 3s / tah"]
[WhiteElo "2046"]
[BlackElo "1970"]

1. e4 {[%clk 00:15:04]} {[%emt 00:00:01]} e5 {[%clk 00:15:05]} {[%emt
00:00:02]} 2. Nf3 {[%clk 00:15:06]} {[%emt 00:00:01]} Nf6 {[%clk 00:15:07]}
{[%emt 00:00:02]} 3. Nc3 {[%clk 00:15:08]} {[%emt 00:00:01]} d6 {[%clk
00:15:09]} 4. d4 {[%clk 00:15:09]} {[%emt 00:00:03]} Nbd7 {[%clk 00:15:10]}
{[%emt 00:00:01]} 5. Bc4 {[%clk 00:15:08]} {[%emt 00:00:04]} h6 {[%clk
00:15:11]} {[%emt 00:00:03]} 6. dxe5 {[%clk 00:14:52]} {[%emt 00:00:18]} dxe5
{[%clk 00:15:12]} {[%emt 00:00:02]} 7. O-O {[%clk 00:14:46]} {[%emt 00:00:09]}
c6 {[%clk 00:15:13]} {[%emt 00:00:02]} 8. a4 {[%clk 00:14:27]} {[%emt
00:00:23]} Be7 {[%clk 00:15:01]} {[%emt 00:00:14]} 9. h3 {[%clk 00:14:10]}
{[%emt 00:00:21]} O-O {[%clk 00:15:01]} {[%emt 00:00:03]} 10. Be3 {[%clk
00:14:12]} {[%emt 00:00:01]} Qc7 {[%clk 00:14:59]} {[%emt 00:00:04]} 11. Qe2
{[%clk 00:14:04]} {[%emt 00:00:12]} Bb4 {[%clk 00:14:53]} {[%emt 00:00:08]} 12.
Bd2 {[%clk 00:13:10]} {[%emt 00:00:58]} Nb6 {[%clk 00:14:16]} {[%emt 00:00:40]}
13. Bb3 {[%clk 00:12:57]} {[%emt 00:00:16]} Bd7 {[%clk 00:14:12]} {[%emt
00:00:07]} 14. Ne1 {[%clk 00:12:00]} {[%emt 00:01:00]} Rfe8 {[%clk 00:13:44]}
{[%emt 00:00:31]} 15. Nd3 {[%clk 00:12:01]} {[%emt 00:00:01]} Bd6 {[%clk
00:13:42]} {[%emt 00:00:06]} 16. Qf3 {[%clk 00:11:15]} {[%emt 00:00:49]} Be6
{[%clk 00:13:34]} {[%emt 00:00:10]} 17. Bxh6 {[%clk 00:10:25]} {[%emt
00:00:52]} Bxb3 {[%clk 00:13:35]} {[%emt 00:00:03]} 18. cxb3 {[%clk 00:10:06]}
{[%emt 00:00:22]} Nbd7 {[%clk 00:13:11]} {[%emt 00:00:27]} 19. Qg3 {[%clk
00:09:12]} {[%emt 00:00:58]} g6 {[%clk 00:12:58]} {[%emt 00:00:15]} 20. Bg5
{[%clk 00:08:53]} {[%emt 00:00:22]} Nh7 {[%clk 00:12:44]} {[%emt 00:00:17]} 21.
Bh6 {[%clk 00:08:36]} {[%emt 00:00:21]} Ndf6 {[%clk 00:12:35]} {[%emt
00:00:12]} 22. Be3 {[%clk 00:08:17]} {[%emt 00:00:22]} Qd7 {[%clk 00:12:15]}
{[%emt 00:00:23]} 23. Rad1 {[%clk 00:07:54]} {[%emt 00:00:27]} Qe6 {[%clk
00:12:16]} {[%emt 00:00:02]} 24. Nc1 {[%clk 00:07:30]} {[%emt 00:00:27]} Bb4
{[%clk 00:11:47]} {[%emt 00:00:31]} 25. f3 {[%clk 00:07:30]} {[%emt 00:00:04]}
b6 {[%clk 00:11:38]} {[%emt 00:00:12]} 26. Qf2 {[%clk 00:07:25]} {[%emt
00:00:08]} Rad8 {[%clk 00:11:34]} {[%emt 00:00:06]} 27. Qc2 {[%clk 00:07:26]}
{[%emt 00:00:03]} Nh5 {[%clk 00:11:21]} {[%emt 00:00:16]} 28. Nd3 {[%clk
00:06:55]} {[%emt 00:00:34]} Bf8 {[%clk 00:11:13]} {[%emt 00:00:12]} 29. Nf2
{[%clk 00:06:36]} {[%emt 00:00:22]} Ng3 {[%clk 00:10:50]} {[%emt 00:00:25]} 30.
Rfe1 {[%clk 00:06:38]} {[%emt 00:00:02]} Be7 {[%clk 00:10:40]} {[%emt
00:00:12]} 31. Rxd8 {[%clk 00:06:18]} {[%emt 00:00:23]} Rxd8 {[%clk 00:10:42]}
{[%emt 00:00:01]} 32. Rd1 {[%clk 00:06:17]} {[%emt 00:00:04]} Rxd1+ {[%clk
00:10:39]} {[%emt 00:00:05]} 33. Qxd1 {[%clk 00:06:19]} {[%emt 00:00:01]} Nf8
{[%clk 00:10:21]} {[%emt 00:00:21]} 34. Nd3 {[%clk 00:05:56]} {[%emt 00:00:26]}
Nd7 {[%clk 00:10:16]} {[%emt 00:00:08]} 35. Bf2 {[%clk 00:05:56]} {[%emt
00:00:04]} Nh5 {[%clk 00:10:17]} {[%emt 00:00:02]} 36. Ne2 {[%clk 00:05:30]}
{[%emt 00:00:28]} Bd6 {[%clk 00:09:53]} {[%emt 00:00:26]} 37. Qc2 {[%clk
00:05:31]} {[%emt 00:00:03]} Bb8 {[%clk 00:09:48]} {[%emt 00:00:08]} 38. Nb4
{[%clk 00:05:19]} {[%emt 00:00:15]} c5 {[%clk 00:09:41]} {[%emt 00:00:10]} 39.
Nd5 {[%clk 00:05:20]} {[%emt 00:00:02]} Nhf6 {[%clk 00:09:40]} {[%emt
00:00:04]} 40. Nxf6+ {[%clk 00:05:04]} {[%emt 00:00:20]} Qxf6 {[%clk 00:09:29]}
{[%emt 00:00:13]} 41. Nc3 {[%clk 00:04:27]} {[%emt 00:00:40]} Qd6 {[%clk
00:09:25]} {[%emt 00:00:06]} 42. Nd5 {[%clk 00:04:25]} {[%emt 00:00:05]} Nf8
{[%clk 00:09:03]} {[%emt 00:00:25]} 43. Bh4 {[%clk 00:03:27]} {[%emt 00:01:00]}
Nd7 {[%clk 00:07:42]} {[%emt 00:01:26]} 44. Qd2 {[%clk 00:03:21]} {[%emt
00:00:09]} Kg7 {[%clk 00:07:21]} {[%emt 00:00:24]} 45. Qg5 {[%clk 00:03:07]}
{[%emt 00:00:15]} f6 {[%clk 00:06:54]} {[%emt 00:00:31]} 46. Qe3 {[%clk
00:02:58]} {[%emt 00:00:12]} Bc7 {[%clk 00:06:50]} {[%emt 00:00:07]} 47. Be1
{[%clk 00:02:46]} {[%emt 00:00:16]} Bd8 {[%clk 00:06:49]} {[%emt 00:00:04]} 48.
Bc3 {[%clk 00:02:48]} {[%emt 00:00:02]} Nf8 {[%clk 00:06:46]} {[%emt 00:00:06]}
49. f4 {[%clk 00:02:40]} {[%emt 00:00:11]} exf4 {[%clk 00:06:05]} {[%emt
00:00:43]} 50. Qxf4 {[%clk 00:02:42]} {[%emt 00:00:02]} Qxf4 {[%clk 00:06:05]}
{[%emt 00:00:03]} 51. Nxf4 {[%clk 00:02:43]} {[%emt 00:00:01]} Kf7 {[%clk
00:06:06]} {[%emt 00:00:01]} 52. Kf2 {[%clk 00:02:43]} {[%emt 00:00:03]} g5
{[%clk 00:06:02]} {[%emt 00:00:07]} 53. Nd5 {[%clk 00:02:41]} {[%emt 00:00:05]}
Ke6 {[%clk 00:06:03]} {[%emt 00:00:01]} 54. g4 {[%clk 00:02:36]} {[%emt
00:00:09]} Ng6 {[%clk 00:06:03]} {[%emt 00:00:03]} 55. Ke3 {[%clk 00:02:28]}
{[%emt 00:00:11]} Kf7 {[%clk 00:05:18]} {[%emt 00:00:48]} 56. b4 {[%clk
00:02:06]} {[%emt 00:00:26]} cxb4 {[%clk 00:05:18]} {[%emt 00:00:03]} 57. Nxb4
{[%clk 00:01:52]} {[%emt 00:00:16]} Bc7 {[%clk 00:05:19]} {[%emt 00:00:02]} 58.
Nd5 {[%clk 00:01:50]} {[%emt 00:00:05]} Bd8 {[%clk 00:05:15]} {[%emt 00:00:07]}
59. Kd3 {[%clk 00:01:45]} {[%emt 00:00:08]} Ke6 {[%clk 00:05:16]} {[%emt
00:00:02]} 60. Kc4 {[%clk 00:01:39]} {[%emt 00:00:10]} a6 {[%clk 00:05:15]}
{[%emt 00:00:04]} 61. b4 {[%clk 00:01:36]} {[%emt 00:00:06]} Nh4 {[%clk
00:05:08]} {[%emt 00:00:09]} 62. Bd4 {[%clk 00:01:28]} {[%emt 00:00:11]} b5+
{[%clk 00:04:42]} {[%emt 00:00:29]} 63. axb5 {[%clk 00:01:29]} {[%emt
00:00:02]} axb5+ {[%clk 00:04:44]} {[%emt 00:00:02]} 64. Kxb5 {[%clk 00:01:24]}
{[%emt 00:00:08]} Nf3 {[%clk 00:04:45]} {[%emt 00:00:02]} 65. Kc5 {[%clk
00:00:51]} {[%emt 00:00:36]} Nd2 {[%clk 00:04:41]} {[%emt 00:00:07]} 66. Nc3
{[%clk 00:00:48]} {[%emt 00:00:06]} Be7+ {[%clk 00:03:12]} {[%emt 00:01:32]} 67.
Kb5 {[%clk 00:00:50]} Bd6 {[%clk 00:03:03]} {[%emt 00:00:12]} 68. Bc5 {[%clk
00:00:33]} {[%emt 00:00:20]} Be5 {[%clk 00:03:05]} {[%emt 00:00:01]} 69. Ne2
{[%clk 00:00:27]} {[%emt 00:00:09]} Nxe4 {[%clk 00:03:06]} {[%emt 00:00:03]} 70.
Kc6 {[%clk 00:00:27]} {[%emt 00:00:02]} Bb8 {[%clk 00:01:43]} {[%emt 00:01:26]}
71. b5 {[%clk 00:00:22]} {[%emt 00:00:08]} Nxc5 {[%clk 00:01:32]} {[%emt
00:00:14]} 72. Kxc5 {[%clk 00:00:24]} Ke5 {[%clk 00:01:34]} 73. Kc6 {[%clk
00:00:18]} {[%emt 00:00:10]} Ke4 {[%clk 00:01:34]} {[%emt 00:00:03]} 74. Kd7
{[%clk 00:00:09]} {[%emt 00:00:12]} Kd3 {[%clk 00:01:23]} {[%emt 00:00:13]} 75.
Ng1 {[%clk 00:00:05]} {[%emt 00:00:07]} Ke3 {[%clk 00:01:24]} {[%emt 00:00:02]}
76. Ke6 {[%clk 00:00:07]} Be5 {[%clk 00:01:26]} {[%emt 00:00:01]} 77. b6 {[%clk
00:00:10]} Kf2 {[%clk 00:01:28]} 78. b7 {[%clk 00:00:09]} {[%emt 00:00:04]}
Kxg1 {[%clk 00:01:28]} {[%emt 00:00:03]} 79. b8=Q {[%clk 00:00:09]} {[%emt
00:00:03]} Bxb8 {[%clk 00:01:29]} {[%emt 00:00:02]} 80. Kxf6 {[%clk 00:00:10]}
{[%emt 00:00:02]} Bf4 {[%clk 00:01:29]} {[%emt 00:00:03]} 81. Kf5 {[%clk
00:00:10]} {[%emt 00:00:03]} Bd2 {[%clk 00:01:31]} {[%emt 00:00:01]} 82. h4
{[%clk 00:00:04]} {[%emt 00:00:10]} gxh4 {[%clk 00:01:32]} {[%emt 00:00:02]} 83.
Ke5 {[%emt 00:00:14]} 0-1

[Event "15. Dobrovický rapid - Tereos TTD a.s. – open"]
[Site "Dobrovice, Czech Republic"]
[Date "2020.02.29"]
[Round "8.13"]
[White "Divis Jaroslav"]
[Black "Lasek Frantisek"]
[Result "0-1"]
[TimeControl "15m + 3s / tah"]
[WhiteElo "2029"]
[BlackElo "1932"]

1. e4 {[%clk 00:15:04]} {[%emt 00:00:02]} c6 {[%clk 00:15:03]} {[%emt
00:00:03]} 2. d4 {[%clk 00:14:31]} {[%emt 00:00:35]} d5 {[%clk 00:15:01]}
{[%emt 00:00:05]} 3. Nc3 {[%clk 00:13:51]} {[%emt 00:00:44]} dxe4 {[%clk
00:14:51]} {[%emt 00:00:13]} 4. Nxe4 {[%clk 00:13:51]} {[%emt 00:00:03]} Bf5
{[%clk 00:14:44]} {[%emt 00:00:10]} 5. Ng3 {[%clk 00:13:33]} {[%emt 00:00:22]}
Bg6 {[%clk 00:14:45]} {[%emt 00:00:02]} 6. h4 {[%clk 00:13:29]} {[%emt
00:00:07]} h6 {[%clk 00:14:44]} {[%emt 00:00:04]} 7. h5 {[%clk 00:13:21]}
{[%emt 00:00:11]} Bh7 {[%clk 00:14:45]} {[%emt 00:00:02]} 8. Nf3 {[%clk
00:13:21]} {[%emt 00:00:03]} Nf6 {[%clk 00:14:33]} {[%emt 00:00:15]} 9. c3
{[%clk 00:12:57]} {[%emt 00:00:28]} e6 {[%clk 00:14:29]} {[%emt 00:00:06]} 10.
Ne5 {[%clk 00:12:28]} {[%emt 00:00:33]} Nbd7 {[%clk 00:14:23]} {[%emt
00:00:09]} 11. Bf4 {[%clk 00:12:10]} {[%emt 00:00:21]} Nd5 {[%clk 00:14:09]}
{[%emt 00:00:17]} 12. Qf3 {[%clk 00:11:30]} {[%emt 00:00:43]} Qf6 {[%clk
00:11:44]} {[%emt 00:02:28]} 13. Nxd7 {[%clk 00:10:40]} {[%emt 00:00:53]} Qxf4
{[%clk 00:11:16]} {[%emt 00:00:32]} 14. Ne5 {[%clk 00:10:26]} {[%emt 00:00:17]}
Qxf3 {[%clk 00:11:03]} {[%emt 00:00:15]} 15. Nxf3 {[%clk 00:09:37]} {[%emt
00:00:53]} Bd6 {[%clk 00:10:58]} {[%emt 00:00:08]} 16. Ne5 {[%clk 00:08:34]}
{[%emt 00:01:06]} f6 {[%clk 00:10:30]} {[%emt 00:00:32]} 17. Nc4 {[%clk
00:07:04]} {[%emt 00:01:33]} Bxg3 {[%clk 00:09:53]} {[%emt 00:00:40]} 18. fxg3
{[%clk 00:07:05]} {[%emt 00:00:02]} O-O-O {[%clk 00:09:44]} {[%emt 00:00:12]}
19. O-O-O {[%clk 00:06:46]} {[%emt 00:00:23]} b5 {[%clk 00:08:42]} {[%emt
00:01:04]} 20. Na5 {[%clk 00:06:39]} {[%emt 00:00:10]} Kc7 {[%clk 00:08:33]}
{[%emt 00:00:12]} 21. Re1 {[%clk 00:06:01]} {[%emt 00:00:42]} Kb6 {[%clk
00:08:14]} {[%emt 00:00:21]} 22. Nb3 {[%clk 00:05:12]} {[%emt 00:00:52]} Rhe8
{[%clk 00:07:58]} {[%emt 00:00:20]} 23. Nc5 {[%clk 00:04:34]} {[%emt 00:00:42]}
e5 {[%clk 00:07:47]} {[%emt 00:00:14]} 24. Nb3 {[%clk 00:03:42]} {[%emt
00:00:55]} exd4 {[%clk 00:07:35]} {[%emt 00:00:15]} 25. Rxe8 {[%clk 00:03:32]}
{[%emt 00:00:14]} Rxe8 {[%clk 00:07:36]} {[%emt 00:00:02]} 26. c4 {[%clk
00:02:48]} {[%emt 00:00:47]} Nb4 {[%clk 00:06:44]} {[%emt 00:00:54]} 27. Kd2
{[%clk 00:02:31]} {[%emt 00:00:20]} Nxa2 {[%clk 00:06:29]} {[%emt 00:00:17]} 28.
c5+ {[%clk 00:02:14]} {[%emt 00:00:21]} Kc7 {[%clk 00:06:13]} {[%emt 00:00:18]}
29. Rh4 {[%clk 00:01:54]} {[%emt 00:00:25]} d3 {[%clk 00:05:48]} {[%emt
00:00:27]} 30. Nd4 {[%clk 00:01:48]} {[%emt 00:00:09]} Nb4 {[%clk 00:05:38]}
{[%emt 00:00:13]} 31. Rg4 {[%clk 00:01:09]} {[%emt 00:00:42]} Re7 {[%clk
00:05:37]} {[%emt 00:00:03]} 32. Ne6+ {[%clk 00:00:40]} {[%emt 00:00:33]} Kb7
{[%clk 00:04:29]} {[%emt 00:01:10]} 33. Nf8 {[%clk 00:00:39]} {[%emt 00:00:05]}
Na6 {[%clk 00:03:28]} {[%emt 00:01:03]} 34. Nxh7 {[%clk 00:00:38]} {[%emt
00:00:05]} Nxc5 {[%clk 00:03:29]} {[%emt 00:00:02]} 35. Nf8 {[%clk 00:00:31]}
{[%emt 00:00:09]} a5 {[%clk 00:03:13]} {[%emt 00:00:19]} 36. Ng6 {[%clk
00:00:33]} {[%emt 00:00:02]} Rd7 {[%clk 00:03:08]} {[%emt 00:00:07]} 37. Nf4
{[%clk 00:00:19]} {[%emt 00:00:19]} Nb3+ {[%clk 00:02:55]} {[%emt 00:00:16]} 38.
Kd1 {[%clk 00:00:20]} {[%emt 00:00:02]} c5 {[%clk 00:02:41]} {[%emt 00:00:17]}
39. Bxd3 {[%clk 00:00:13]} {[%emt 00:00:11]} c4 {[%clk 00:02:38]} {[%emt
00:00:06]} 40. Kc2 {[%clk 00:00:08]} {[%emt 00:00:08]} cxd3+ {[%emt 00:02:29]}
0-1